Cogmind - Beta 13 @@@ ROGUE MODE // 2024.04.03 @ 01:41:25 Player: Iris Result: Destroyed by P7-IH8(R) with Subdweller Laser Performance ------------- Evolutions (0) 0 Regions Visited (2) 400 Robots Destroyed (18) 90 Value Destroyed (467) 467 Prototype IDs (0) 0 Alien Tech Used (0) 0 Bonus (0) 0 TOTAL SCORE: 957 Bonus ------- None Cogmind --------- Core Integrity 0/250 Matter 285/300 Energy 100/100 System Corruption 0% Temperature Cool (6) Movement Core (300) Ox5 Location -10/Subcaves Parts ------- > --- POWER (1) -------- Subdweller Power Source > --- PROPULSION (2) --- Subdweller Monowheel > --- UTILITY (2) ------ Improved Heat Sink Signal Interpreter > --- WEAPON (2) ------- Subdweller Beam Cannon Assault Rifle > --- INVENTORY (5) ---- Light Assault Rifle Peak State ------------ > --- POWER ------------ Subdweller Power Source > --- PROPULSION ------- Light Treads Light Treads > --- UTILITY ---------- Improved Heat Sink Signal Interpreter > --- WEAPON ----------- Subdweller Machine Gun Grenade Launcher > --- INVENTORY -------- Assault Rifle Light Assault Rifle [Rating: 11] Favorites ----------- Power Light Ion Engine Engine Light Ion Engine Propulsion Light Treads Treads Light Treads Wheel Subdweller Monowheel Utility Signal Interpreter Device Improved Heat Sink Processor Signal Interpreter Weapon Assault Rifle Energy Cannon Subdweller Beam Cannon Ballistic Gun Assault Rifle Launcher Grenade Launcher Build | -11 -10 -10 ------- Run | Yrd Mat Sub Slots Evolved . | . . . Power . | . . . Propulsion . | . . . Utility . | . . . Weapon . | . . . Parts Attached 14 | 5 3 6 Power 3 | 1 . 2 Engine 3 | 1 . 2 Core . | . . . Reactor . | . . . Propulsion 3 | 2 . 1 Treads 2 | 2 . . Leg . | . . . Wheel 1 | . . 1 Hover . | . . . Flight . | . . . Utility 2 | . 2 . Device 1 | . 1 . Storage . | . . . Processor 1 | . 1 . Hackware . | . . . Protection . | . . . Artifact . | . . . Weapon 6 | 2 1 3 Energy Gun . | . . . Energy Cannon 1 | . . 1 Ballistic Gun 4 | 2 . 2 Ballistic Cannon . | . . . Launcher 1 | . 1 . Special Weapon . | . . . Impact Weapon . | . . . Slashing Weapon . | . . . Piercing Weapon . | . . . Special Melee Weapon . | . . . Unidentified Prototypes . | . . . Parts Lost 6 | . . 6 Power 2 | . . 2 Propulsion 2 | . . 2 Utility . | . . . Weapon 2 | . . 2 Highest Loss Streak 4 | . . 4 To Critical Strikes . | . . . Average Slot Usage (%) 91 | . 91 91 Engine 12 | . 14 12 Treads 21 | . 28 19 Wheel 2 | . . 2 Device 12 | . 8 14 Processor 13 | . 11 14 Energy Cannon 2 | . . 3 Ballistic Gun 16 | . 21 14 Launcher 8 | . 6 9 Naked Turns . | . . . Heaviest Build 16 | 6 9 16 Greatest Support 40 | 40 40 40 Greatest Overweight (x) 5 | . . 5 Average Overweight (x) . | . . . Largest Inventory Capacity 5 | 5 5 5 Average Capacity 5 | 5 5 5 Most Carried 5 | . 2 5 Average Carried 1 | . . 1 Final Capacity 5 | 5 5 5 Final Carried 1 | . 1 1 Class Distribution -------------------- 85% | Mutant 14% | Scavenger-Mutant Dominant Class ---------------- Mutant | -10/Materials Mutant | -10/Subcaves Resources | -11 -10 -10 ----------- Run | Yrd Mat Sub Matter Collected 616 | 229 166 221 Remotely . | . . . Salvage Created 427 | . 213 214 Parts 25 | . 12 13 Haulers Intercepted . | . . . Recyclers Shooed . | . . . Parts Field Recycled . | . . . Retrieved Matter . | . . . Parts Self-Destructed 3 | . . 3 Prevented . | . . . Kills | -11 -10 -10 ------- Run | Yrd Mat Sub Combat Hostiles Destroyed 15 | . 6 9 Guns 7 | . 4 3 AOE 8 | . 2 6 Classes Destroyed 6 | . 5 1 Builder 1 | . 1 . Tunneler 1 | . 1 . Watcher 1 | . 1 . Swarmer 5 | . 2 3 Grunt 4 | . 4 . Subdweller 6 | . . 6 Best Kill Streak 5 | . 3 5 Combat Bots Only 5 | . 3 5 Max Kills in Single Turn 1 | . 1 1 Gunslinging . | . . . Exploded 1 | . 1 1 Melee . | . . . Uniques/NPCs Destroyed . | . . . Combat | -11 -10 -10 -------- Run | Yrd Mat Sub Hostile Shots Fired 90 | . 47 43 Missed 27 | . 13 14 Damage Taken 904 | . 335 569 Core 268 | . 65 203 Absorbed by Shields . | . . . Core Remaining (%) 100 | 100 . . Volleys Fired 56 | . 27 29 Largest 2 | . 2 2 Hottest 50 | . 40 50 Shots Fired 80 | . 47 33 Gun 61 | . 43 18 Cannon . | . . . Launcher 19 | . 4 15 Special . | . . . Kinetic 61 | . 43 18 Thermal . | . . . Explosive 19 | . 4 15 Electromagnetic . | . . . Robot Hit Streak 8 | . 8 6 Robot Miss Streak 4 | . 4 4 Penetration Max . | . . . Secondary Targets . | . . . Shots Hit Robots 47 | . 34 13 Core Hits 30 | . 17 13 Critical Kills . | . . . Critical Parts Destroyed . | . . . Critical Strikes . | . . . Melee Attacks . | . . . Impact . | . . . Slashing . | . . . Piercing . | . . . Sneak Attacks . | . . . Combat Hostiles . | . . . Follow-up Attacks . | . . . Damage Inflicted 1269 | . 493 776 Guns 543 | . 325 218 Cannons . | . . . Explosions 714 | . 156 558 Melee . | . . . Ramming 12 | . 12 . Kinetic 543 | . 325 218 Thermal . | . . . Explosive 714 | . 156 558 Electromagnetic . | . . . Impact . | . . . Slashing . | . . . Piercing . | . . . Highest Corruption . | . . . Average Corruption . | . . . Corruption Purged . | . . . Corruption Blocked . | . . . Overload Shots . | . . . Overflow Damage . | . . . Projectiles . | . . . Explosions . | . . . Melee . | . . . Knockbacks . | . . . Impact . | . . . Kinetic . | . . . Secondary . | . . . Self-Inflicted Damage . | . . . Shots . | . . . Rammed 7 | . 7 . Targets Rammed 8 | . 8 . Kicked . | . . . Crushed 1 | . 1 . Highest Temperature 236 | . 18 236 Average Temperature 41 | . 8 134 Received Heat Transfer 492 | . 93 399 Siege Activations . | . . . Robots Corrupted . | . . . Combat Hostiles . | . . . Parts Fried . | . . . Impact Corruptions . | . . . Robots Melted . | . . . Combat Hostiles . | . . . Parts Melted . | . . . Heat Transferred . | . . . Parts Sabotaged . | . . . Parts Stolen . | . . . Parts Stripped . | . . . Power Chain Reactions . | . . . Alert | -11 -10 -10 ------- Run | Yrd Mat Sub Peak Influence 188 | . 188 . Initial . | . . . Average 44 | . 51 . Maximum Alert Level . | . . . Low Security (%) 100 | 100 100 . Level 1 . | . . . Level 2 . | . . . Level 3 . | . . . Level 4 . | . . . Level 5 . | . . . High Security . | . . . Max Security . | . . . Squads Dispatched 1 | . 1 . Investigation . | . . . Extermination . | . . . Reinforcement 1 | . 1 . Assault . | . . . Garrison . | . . . Intercept . | . . . Searches Triggered . | . . . Construction Impeded . | . . . Haulers Reinforced . | . . . Active Scanning Responses . | . . . Cargo Convoy Interrupts . | . . . Stealth | -11 -10 -10 --------- Run | Yrd Mat Sub Distress Signals 1 | . 1 . Communications Jammed . | . . . Distress Signals . | . . . Times Spotted 21 | . 11 10 Peak Tracking Total 7 | . 7 3 Tactical Retreats . | . . . Traps | -11 -10 -10 ------- Run | Yrd Mat Sub Traps Triggered . | . . . Indirectly . | . . . Trap Hack Attempts . | . . . Triggered . | . . . Disarmed . | . . . Reprogrammed . | . . . Reused . | . . . Traps Extracted . | . . . Installed . | . . . Triggered . | . . . Machines | -11 -10 -10 ---------- Run | Yrd Mat Sub Machines Disabled . | . . . Max in Single Turn . | . . . Machines Repaired . | . . . Machines Dismantled . | . . . Machines Sabotaged . | . . . Overloaded Fab Kills . | . . . Hacking | -11 -10 -10 --------- Run | Yrd Mat Sub Machines Accessed 1 | . 1 . Terminals 1 | . 1 . Fabricators . | . . . Repair Stations . | . . . Recycling Units . | . . . Scanalyzers . | . . . Garrison Access . | . . . Total Hacks 3 | . 3 . Successful 2 | . 2 . Failed 1 | . 1 . Catastrophic . | . . . Database Lockouts . | . . . Manual . | . . . Terminals 3 | . 3 . Fabricators . | . . . Repair Stations . | . . . Recycling Units . | . . . Scanalyzers . | . . . Garrison Access . | . . . Terminal Hacks 2 | . 2 . Dispatch Records 1 | . 1 . Patrol Status 1 | . 1 . Fabricator Hacks . | . . . Repair Station Hacks . | . . . Recycling Unit Hacks . | . . . Scanalyzer . | . . . Garrison Access Hacks . | . . . Unauthorized Hacks . | . . . Terminals . | . . . Fabricators . | . . . Repair Stations . | . . . Recycling Units . | . . . Scanalyzers . | . . . Garrison Access . | . . . Data Cores Recovered . | . . . Used . | . . . Hacking Detections 1 | . 1 . Full Trace Events 1 | . 1 . Feedback Events . | . . . Feedback Blocked . | . . . Robot Schematics Acquired . | . . . Robots Built . | . . . Authchips . | . . . Time . | . . . Total Robot Build Rating . | . . . Part Schematics Acquired . | . . . Parts Built . | . . . Authchips . | . . . Time . | . . . Total Part Build Rating . | . . . Parts Repaired . | . . . Time . | . . . Parts Recycled . | . . . Recycled Matter . | . . . Retrieved Matter . | . . . Retrieved Components . | . . . Parts Scanalyzed . | . . . Part Schematics Acquired . | . . . Parts Damaged . | . . . Bothacking | -11 -10 -10 ------------ Run | Yrd Mat Sub Used RIF Installer . | . . . Robots Hacked . | . . . Non-combat . | . . . Combat . | . . . Robot Hacks Applied . | . . . Relay Couplers Released . | . . . Fabnet Peak Effective % . | . . . Robots Rewired . | . . . Allies Hacked . | . . . Hacks Repelled . | . . . Allies | -11 -10 -10 -------- Run | Yrd Mat Sub Total Allies . | . . . Largest Group . | . . . Highest-Rated Group . | . . . Highest-Rated Ally . | . . . Total Orders . | . . . Ally Attacks . | . . . Total Damage . | . . . Kills . | . . . Allies Corrupted . | . . . Allies Melted . | . . . Intel | -11 -10 -10 ------- Run | Yrd Mat Sub Robot Analysis Total . | . . . Derelict Logs Recovered . | . . . Drone Launches . | . . . Drone Recoveries . | . . . Exploration | -11 -10 -10 ------------- Run | Yrd Mat Sub Turns Passed 1981 | 92 551 1338 Spaces Moved 1132 | 61 290 781 Core 154 | 11 . 143 Treads 886 | 50 290 546 Legs . | . . . Wheels 92 | . . 92 Hover . | . . . Flight . | . . . Fastest Speed 50 | 50 160 50 Average Speed 160 | 140 160 161 Slowest Speed 300 | 160 160 300 Overloaded Moves . | . . . Propulsion Burnouts . | . . . Robots Hopped . | . . . Cave-ins Triggered . | . . . Exploration Rate (%) 28 | 5 41 40 Regions Visited 2 Branch Regions 1 Pre-discovered Areas . | . . . Known Exits Taken 1 | . 1 . Unknown Exits Taken 1 | 1 . . Scrap Searched 1 | . . 1 Spaces Dug . | . . . Terrain Destroyed 83 | . 16 67 Melee . | . . . Projectile . | . . . AOE 83 | . 16 67 Terrain Rammed . | . . . Walls Destroyed . | . . . Machines Disabled . | . . . Actions | -11 -10 -10 --------- Run | Yrd Mat Sub Total 1217 | 65 329 823 Wait . | . . . Move 1130 | 60 289 781 Hop . | . . . Pick Up 4 | . 1 3 Fast Attach 12 | 5 2 5 Attach 2 | . 1 1 Detach 2 | . 1 1 Swap . | . . . Drop 3 | . . 3 Fire 56 | . 27 29 Melee . | . . . Ram . | . . . Kick . | . . . Crush 8 | . 8 . Escape Stasis . | . . . Rewire . | . . . Trap . | . . . Miscellaneous . | . . . Route ------- -11/Scrapyard -10/Materials (discovered 2 exits: *Mat / *Sub) -10/Subcaves (discovered 1 exit: *Mat) History --------- Turn | Location | Event 6 | -11/Scrapyard | Discovered new exit (range 15) 93 | -11/Scrapyard | Entered Materials 324 | -10/Materials | Build established: Mutant 450 | -10/Materials | Discovered new exit (range 15) 514 | -10/Materials | Identified exit to Materials 629 | -10/Materials | Discovered new exit (range 9) 641 | -10/Materials | Identified exit to Subcaves 644 | -10/Materials | Entered Subcaves 788 | -10/Subcaves | Discovered new exit (range 6) 794 | -10/Subcaves | Identified exit to Materials 1565 | -10/Subcaves | Core integrity fell below 50% 1593 | -10/Subcaves | Lost 4 parts (1p2n1w) 1686 | -10/Subcaves | Core integrity fell below 20% 1789 | -10/Subcaves | Shifting Twisted Machinery released Mak. Thermal Plating 1919 | -10/Subcaves | Shifting Twisted Machinery released Mak. System Restoration Module 1982 | -10/Subcaves | Destroyed by P7-IH8(R) with Subdweller Laser Last Messages --------------- 01591_ Dropped Scrap Shield Fragment. 01679_ Critical hit (Meltdown: +270). 01687_ Sub. Machine Gun destroyed. 01690_ 0T-YHH(R) destroyed. 01695_ Acquired Sub. Beam Cannon. 01702_ Acquired Sub. Power Source. 01713_ Acquired Sub. Monowheel. 01714_ Acquired 27 matter. 01781_ Searching scrap... 01781_ Found Piercing Trap. 01781_ Found 19 Matter. 01782_ Acquired 19 matter. Mak. Thermal Plating falls loose from the Twisted Machinery. 01814_ Sub. Monowheel shoots sparks and powers down. 01885_ Sub. Power Source shoots sparks and powers down. Mak. System Restoration Module falls loose from the Twisted Machinery. Map ----- +----------------------------------------------------+ | | | | | ?????????????????????????????????????????????????? | | ?????????????????????????????????????????????????? | | ?????????????????????????????????????????????????? | | ?????????????????????????????????????????????????? | | ?????????????????????????????????????????????????? | | ?????????????????????????????????????????????????? | | ?????????????????????????????????????????????????? | | ?????????????????????????????????????????????????? | | ?????????????????????????????????????????????????? | | ?????????????????????????????????????????????????? | | ?????????????????????????????????????????????????? | | ?????????????????????????????????????????????????? | | ?????????????????????????????????????????????????? | | ?????????????????????????????????????????????????? | | ?????????????????????????????????????????????????? | | ??????????????????####???????????????????????????? | | ##????????????##### ####????????????????????????? | | ##??????????## ##"##???????????????????????? | | #????####??# & ""!##??????????????????????? | | #???## ##?# ## " ##?????????????????????? | | ##?## #### ### " #?????????????????????? | | ### # ##?## ##! ###?? #???????????????? | | #??####" # # #???????????????? | | # ##??#??##@ R #????????????????? | | ## # ^ # ## ### ??#" ## # #????????????????? | | ?#### ###?### "#### #?#??????????????????? | | ## ?## ##???# ""## #????????????????????? | | ## #####??# """# #????????????????????? | | ## #??# """## ^ #????????????????????? | | #???# """## ^#????????????????????? | | ##????# ##????????????????????? | | #???### ###?????????????????????? | | ### ##??# #???????????????????????? | | #??# ##### ##???????????????????????? | | ???# ^ ##"# ##???##???????????????????? | | # ### ### #### #???????????????????? | | ## ##?# %% #???????????????????? | | ?# ???# & % #????????????????? | | ???#### "! ##????????????????? | | ^ ??????## # # # ##?????????????????? | | # ###????## ####### ##??????????????????? | | ### ##?## #?????# ##???????????????????? | | ### ## ## #????# #????????????????????? | | ?## ## ##??? # ?#????????????????????? | | # #??? ???????????????????????? | | # ##?? #????????????????????????? | | ## ##? #?????????????????????????? | | ? ## ## #?## ## #?????? ??????????????????? | +----------------------------------------------------+ Best States ------------- Heat Dissipation 39 Energy Generation 15 Energy Capacity 200 Matter Stores 300 Matter Capacity 300 Sight Range 16 Terrain Scan Density 10 Evasion (%) 50 Recoil Reduction 2 Item Schematics ----------------- None Robot Schematics ------------------ None Fabricated ------------ Nothing Alien Tech Used ----------------- None Achievements -------------- None Challenges ------------ None Game ------ Seed ConstructSubdwellerBoomstick Manual? 0 Play Time 00:08:46 Cumulative 5.5 hours Start 2024.04.03 @ 01:32:36 End 2024.04.03 @ 01:41:25 Sessions 1 Manual Loads 0 Difficulty Rogue Special Mode None Game No. 16 Rogue 16 Adventurer 0 Explorer 0 Win Type - Total 0 Types 0/0/0/0/0/0/0/0/0 Lore% 11 Gallery% 12 Achievement% 14 Wizard Run 0 Options --------- Layout 2 ASCII 0 Keyboard 1 Movement Arrows Keybinds 0 Fullscreen 2 Font 32/SmallcapsGlow Map View 50x44 Zoom Use 0% Tactical HUD 1 Map Filters NONE Filters NONE Steam 1 RUN: 3d8e806e-4001-4161-a751-259efd88c6ac